[Event "Frauenbundesliga 2024-25"]
[Site "Germany"]
[Date "2025.02.16"]
[Round "6.4"]
[White "Braeutigam, Katerina"]
[Black "Kachiani-Gersinska, Ketino"]
[Result "1-0"]
[Annotator "ChessBase"]
[ECO "C78"]
[WhiteElo "1981"]
[BlackElo "2310"]
[PlyCount "141"]
[EventDate "2024.11.06"]
[EventType "team-tourn"]
[EventCountry "GER"]
[SourceTitle "playchess.com"]
[Source "ChessBase"]
[SourceQuality "1"]
[TimeControl "40/5400+30:1800+30"]

1. e4 {[%emt 0:00:03]} e5 {[%emt 0:02:45]} 2. Nf3 {[%emt 0:00:09]} Nc6 {[%emt 0:00:06]} 3. Bb5 {[%emt 0:00:07]} a6 {[%emt 0:00:06]} 4. Ba4 {[%emt 0:00:08]} Nf6 {[%emt 0:00:06]} 5. d3 {[%emt 0:00:42]} b5 {[%emt 0:07:55]} 6. Bb3 {[%emt 0:00:07]} Bb7 {[%emt 0:01:14]} 7. O-O {[%emt 0:01:32]} h6 {[%emt 0:06:34]} 8. c3 {[%emt 0:00:53]} Be7 {[%emt 0:01:06]} 9. Re1 {[%emt 0:00:52]} d6 {[%emt 0:10:22]} 10. Nbd2 {[%emt 0:00:23]} Nd7 {[%emt 0:04:23]} 11. d4 {[%emt 0:06:04]} Bf6 {[%emt 0:02:26]} 12. d5 {[%emt 0:06:55]} Ne7 {[%emt 0:05:29]} 13. a4 {[%emt 0:11:15]} c6 {[%emt 0:01:47]} 14. dxc6 {[%emt 0:15:22]} Bxc6 {[%emt 0:00:24]} 15. c4 {[%emt 0:03:16]} Nc5 {[%emt 0:09:08]} 16. axb5 {[%emt 0:04:00]} axb5 {[%emt 0:00:08]} 17. Rxa8 {[%emt 0:00:46]} Qxa8 {[%emt 0:01:25]} 18. cxb5 {[%emt 0:18:45]} Bxe4 {[%emt 0:02:26]} 19. Nxe4 {[%emt 0:06:10]} Nxe4 {[%emt 0:00:51]} 20. Bc2 {[%emt 0:01:41]} d5 {[%emt 0:05:08]} 21. Bxe4 {[%emt 0:01:09]} dxe4 {[%emt 0:00:05]} 22. Nd2 {[%emt 0:00:09]} O-O {[%emt 0:00:38]} 23. Nxe4 {[%emt 0:01:09]} Bh4 {[%emt 0:00:12]} 24. g3 {[%emt 0:05:40]} f5 {[%emt 0:00:05]} 25. Nc5 {[%emt 0:03:04]} Ng6 {[%emt 0:10:46]} 26. Qb3+ {[%emt 0:09:04]} Kh7 {[%emt 0:02:28]} 27. Nd7 {[%emt 0:00:39]} Re8 {[%emt 0:08:05]} 28. b6 {[%emt 0:01:09]} Qb7 {[%emt 0:03:05]} 29. Qb5 {[%emt 0:02:02]} Re6 {[%emt 0:06:54]} 30. Nxe5 {[%emt 0:00:39]} Rxb6 {[%emt 0:02:13]} 31. Qd3 {[%emt 0:00:54]} Bf6 {[%emt 0:01:25]} 32. Qxf5 {[%emt 0:00:54]} Bxe5 {[%emt 0:00:30]} 33. Rxe5 {[%emt 0:00:06]} Rc6 {[%emt 0:00:26]} 34. Re1 {[%emt 0:00:21]} Qb4 {[%emt 0:01:01]} 35. Rd1 {[%emt 0:00:34]} Qb3 {[%emt 0:00:23]} 36. Rf1 {[%emt 0:00:55]} Rf6 {[%emt 0:01:40]} 37. Qe4 {[%emt 0:00:25]} Re6 {[%emt 0:00:07]} 38. Qf5 {[%emt 0:00:19]} Rf6 {[%emt 0:00:07]} 39. Qc5 {[%emt 0:00:58]} Nh4 {[%emt 0:01:33]} 40. f4 {[%emt 0:00:37]} Nf5 {[%emt 0:02:30]} 41. Qc3 {[%emt 0:06:34]} Qb6+ {[%emt 0:02:01]} 42. Kh1 {[%emt 0:02:44]} Re6 {[%emt 0:01:15]} 43. Qd3 {[%emt 0:05:03]} Qc6+ {[%emt 0:02:11]} 44. Kg1 {[%emt 0:02:06]} Qc5+ {[%emt 0:02:03]} 45. Kg2 {[%emt 0:00:33]} Rd6 {[%emt 0:03:36]} 46. Qe4 {[%emt 0:01:49]} Kh8 {[%emt 0:05:43]} 47. g4 {[%emt 0:04:28]} Rg6 {[%emt 0:06:13]} 48. Kh3 {[%emt 0:02:20]} Ne7 {[%emt 0:00:28]} 49. Re1 {[%emt 0:07:39]} h5 {[%emt 0:01:23]} 50. g5 {[%emt 0:01:22]} Qc8+ {[%emt 0:03:15]} 51. Kg2 {[%emt 0:00:19]} Qg4+ {[%emt 0:01:01]} 52. Kh1 {[%emt 0:00:56]} Nf5 {[%emt 0:00:07]} 53. Rg1 {[%emt 0:00:35]} Qh3 {[%emt 0:00:51]} 54. Bd2 {[%emt 0:00:30]} h4 {[%emt 0:01:31]} 55. Be1 {[%emt 0:00:15]} Re6 {[%emt 0:02:01]} 56. Qa8+ {[%emt 0:00:44]} Kh7 {[%emt 0:00:19]} 57. g6+ {[%emt 0:00:27]} Rxg6 {[%emt 0:01:08]} 58. Rxg6 {[%emt 0:00:01]} Kxg6 {[%emt 0:00:07]} 59. Qg2+ {[%emt 0:00:22]} Qxg2+ {[%emt 0:00:04]} 60. Kxg2 {[%emt 0:00:05]} Kf6 {[%emt 0:01:23]} 61. Bc3+ {[%emt 0:01:03]} Ke6 {[%emt 0:01:39]} 62. Kh3 {[%emt 0:00:46]} Kd5 {[%emt 0:00:05]} 63. Kg4 {[%emt 0:00:34]} Ke4 {[%emt 0:00:01]} 64. h3 {[%emt 0:00:37]} Ne3+ {[%emt 0:01:23]} 65. Kxh4 {[%emt 0:00:35]} Ng2+ {[%emt 0:00:02]} 66. Kg4 {[%emt 0:00:15]} Nxf4 {[%emt 0:00:31]} 67. Bxg7 {[%emt 0:00:07]} Nd5 {[%emt 0:00:06]} 68. h4 {[%emt 0:00:36]} Ne3+ {[%emt 0:00:16]} 69. Kg5 {[%emt 0:00:15]} Kd5 {[%emt 0:00:31]} 70. Kf6 {[%emt 0:00:55]} Ng4+ {[%emt 0:02:34]} 71. Kf7 {[%emt 0:00:33]} 1-0

[Event "Frauenbundesliga 2024-25"]
[Site "Germany"]
[Date "2025.02.16"]
[Round "6.5"]
[White "Heinemann, Josefine"]
[Black "Just, Anita"]
[Result "1-0"]
[Annotator "ChessBase"]
[ECO "C02"]
[WhiteElo "2294"]
[BlackElo "1906"]
[PlyCount "83"]
[EventDate "2024.11.06"]
[EventType "team-tourn"]
[EventCountry "GER"]
[SourceTitle "playchess.com"]
[Source "ChessBase"]
[SourceQuality "1"]
[TimeControl "40/5400+30:1800+30"]

1. e4 {[%emt 0:00:03]} e6 {[%emt 0:00:04]} 2. d4 {[%emt 0:00:04]} d5 {[%emt 0:00:05]} 3. e5 {[%emt 0:00:21]} c5 {[%emt 0:00:19]} 4. c3 {[%emt 0:00:06]} Qb6 {[%emt 0:00:25]} 5. Nf3 {[%emt 0:01:04]} Bd7 {[%emt 0:00:44]} 6. Be2 {[%emt 0:04:13]} Bb5 {[%emt 0:00:53]} 7. dxc5 {[%emt 0:03:17]} Bxc5 {[%emt 0:00:26]} 8. b4 {[%emt 0:00:43]} Bxf2+ {[%emt 0:04:26]} 9. Kf1 {[%emt 0:00:11]} Bc6 {[%emt 0:01:48]} 10. a4 {[%emt 0:00:23]} a5 {[%emt 0:03:07]} 11. b5 {[%emt 0:00:21]} Bd7 {[%emt 0:00:44]} 12. Nd4 {[%emt 0:01:23]} Bh4 {[%emt 0:06:16]} 13. Bd3 {[%emt 0:06:33]} h5 {[%emt 0:09:01]} 14. Qf3 {[%emt 0:08:33]} Qc7 {[%emt 0:11:42]} 15. Qe2 {[%emt 0:05:15]} Bc8 {[%emt 0:08:31]} 16. g3 {[%emt 0:05:08]} Be7 {[%emt 0:00:53]} 17. h4 {[%emt 0:02:23]} Nd7 {[%emt 0:02:06]} 18. Bf4 {[%emt 0:00:15]} Nb6 {[%emt 0:02:57]} 19. Kg2 {[%emt 0:01:43]} Bd7 {[%emt 0:00:53]} 20. Rc1 {[%emt 0:02:47]} Nc4 {[%emt 0:06:03]} 21. Nd2 {[%emt 0:04:15]} Nxd2 {[%emt 0:05:16]} 22. Qxd2 {[%emt 0:01:26]} Bc5 {[%emt 0:01:33]} 23. Nb3 {[%emt 0:01:26]} Ne7 {[%emt 0:03:06]} 24. Nxc5 {[%emt 0:04:36]} Qxc5 {[%emt 0:00:17]} 25. Be3 {[%emt 0:00:04]} Qc7 {[%emt 0:02:09]} 26. Bd4 {[%emt 0:00:17]} Nf5 {[%emt 0:03:26]} 27. Qf4 {[%emt 0:05:07]} Rc8 {[%emt 0:07:00]} 28. Rf1 {[%emt 0:07:41]} Qd8 {[%emt 0:03:59]} 29. Rae1 {[%emt 0:03:19]} O-O {[%emt 0:03:06]} 30. Qf3 {[%emt 0:05:24]} Nxd4 {[%emt 0:04:21]} 31. cxd4 {[%emt 0:01:22]} g6 {[%emt 0:00:38]} 32. Qf4 {[%emt 0:00:41]} Kg7 {[%emt 0:01:37]} 33. Re3 {[%emt 0:00:27]} Qe7 {[%emt 0:03:52]} 34. Ref3 {[%emt 0:00:49]} b6 {[%emt 0:01:23]} 35. Qd2 {[%emt 0:01:37]} Rc7 {[%emt 0:01:18]} 36. Bxg6 {[%emt 0:01:45]} fxg6 {[%emt 0:02:01]} 37. Rxf8 {[%emt 0:00:06]} Be8 {[%emt 0:00:18]} 38. Kh3 {[%emt 0:04:29]} Rc4 {[%emt 0:00:30]} 39. Qg5 {[%emt 0:00:36]} Qxg5 {[%emt 0:01:52]} 40. hxg5 {[%emt 0:00:06]} Rc8 {[%emt 0:00:21]} 41. R1f7+ {[%emt 0:30:07]} Bxf7 {[%emt 0:30:52]} 42. Rxc8 {[%emt 0:00:04]} 1-0

[Event "Frauenbundesliga 2024-25"]
[Site "Germany"]
[Date "2025.02.16"]
[Round "6.5"]
[White "Valkova, Angelika"]
[Black "Schoene, Maria"]
[Result "1-0"]
[Annotator "ChessBase"]
[ECO "E71"]
[WhiteElo "2003"]
[BlackElo "2178"]
[PlyCount "33"]
[EventDate "2024.11.06"]
[EventType "team-tourn"]
[EventCountry "GER"]
[SourceTitle "playchess.com"]
[Source "ChessBase"]
[SourceQuality "1"]
[TimeControl "40/5400+30:1800+30"]

1. d4 {[%emt 0:00:03]} Nf6 {[%emt 0:00:08]} 2. c4 {[%emt 0:00:07]} g6 {[%emt 0:00:08]} 3. Nc3 {[%emt 0:00:05]} Bg7 {[%emt 0:00:07]} 4. e4 {[%emt 0:00:06]} d6 {[%emt 0:00:04]} 5. h3 {[%emt 0:00:05]} O-O {[%emt 0:01:00]} 6. Be3 {[%emt 0:00:10]} e5 {[%emt 0:07:15]} 7. d5 {[%emt 0:00:09]} a5 {[%emt 0:00:58]} 8. g4 {[%emt 0:00:29]} Na6 {[%emt 0:00:41]} 9. Nge2 {[%emt 0:01:56]} Nc5 {[%emt 0:08:29]} 10. Ng3 {[%emt 0:00:35]} Bd7 {[%emt 0:00:07]} 11. Qd2 {[%emt 0:02:56]} c6 {[%emt 0:17:28]} 12. f3 {[%emt 0:01:29]} cxd5 {[%emt 0:07:17]} 13. cxd5 {[%emt 0:00:04]} a4 {[%emt 0:00:22]} 14. h4 {[%emt 0:00:48]} Qa5 {[%emt 0:03:28]} 15. h5 {[%emt 0:07:20]} a3 {[%emt 0:04:57]} 16. Rb1 {[%emt 0:12:16]} Rac8 {[%emt 0:14:35]} 17. b4 {[%emt 0:04:38]} 1-0

[Event "Frauenbundesliga 2024-25"]
[Site "Germany"]
[Date "2025.02.16"]
[Round "6.6"]
[White "Kanakova, Natalie"]
[Black "Lukas, Olivia"]
[Result "1-0"]
[Annotator "ChessBase"]
[ECO "A36"]
[WhiteElo "2162"]
[BlackElo "1444"]
[PlyCount "51"]
[EventDate "2024.11.06"]
[EventType "team-tourn"]
[EventCountry "GER"]
[SourceTitle "playchess.com"]
[Source "ChessBase"]
[SourceQuality "1"]
[TimeControl "40/5400+30:1800+30"]

1. c4 {[%emt 0:00:06]} c5 {[%emt 0:00:07]} 2. Nc3 {[%emt 0:01:05]} Nc6 {[%emt 0:00:31]} 3. g3 {[%emt 0:00:24]} g6 {[%emt 0:00:50]} 4. Bg2 {[%emt 0:00:06]} Bg7 {[%emt 0:00:08]} 5. e4 {[%emt 0:00:49]} e6 {[%emt 0:02:27]} 6. Nge2 {[%emt 0:00:36]} Nge7 {[%emt 0:00:59]} 7. d3 {[%emt 0:00:42]} O-O {[%emt 0:00:59]} 8. Be3 {[%emt 0:00:46]} Nd4 {[%emt 0:01:13]} 9. O-O {[%emt 0:01:02]} Nec6 {[%emt 0:01:07]} 10. Rb1 {[%emt 0:06:57]} d6 {[%emt 0:03:34]} 11. Qd2 {[%emt 0:04:24]} Re8 {[%emt 0:01:27]} 12. Kh1 {[%emt 0:06:16]} e5 {[%emt 0:04:25]} 13. f4 {[%emt 0:05:45]} Bg4 {[%emt 0:05:38]} 14. Ng1 {[%emt 0:01:55]} Be6 {[%emt 0:02:29]} 15. Nf3 {[%emt 0:04:47]} f6 {[%emt 0:01:34]} 16. b3 {[%emt 0:07:47]} a6 {[%emt 0:01:47]} 17. Nh4 {[%emt 0:02:16]} Qd7 {[%emt 0:01:42]} 18. Nd5 {[%emt 0:05:49]} Rab8 {[%emt 0:01:17]} 19. fxe5 {[%emt 0:02:55]} fxe5 {[%emt 0:02:12]} 20. Bg5 {[%emt 0:05:22]} Rf8 {[%emt 0:01:46]} 21. Nf6+ {[%emt 0:01:02]} Bxf6 {[%emt 0:00:25]} 22. Bxf6 {[%emt 0:00:08]} Bg4 {[%emt 0:01:51]} 23. Qh6 {[%emt 0:06:18]} Bh5 {[%emt 0:03:05]} 24. g4 {[%emt 0:03:18]} Rxf6 {[%emt 0:01:30]} 25. Rxf6 {[%emt 0:00:45]} Qxg4 {[%emt 0:00:50]} 26. Rbf1 {[%emt 0:00:17]} 1-0

[Event "Frauenbundesliga 2024-25"]
[Site "Germany"]
[Date "2025.02.16"]
[Round "6.6"]
[White "Peglau, Sarah"]
[Black "Tammert, Iamze"]
[Result "0-1"]
[Annotator "ChessBase"]
[ECO "E18"]
[WhiteElo "1878"]
[BlackElo "2228"]
[PlyCount "98"]
[EventDate "2024.11.06"]
[EventType "team-tourn"]
[EventCountry "GER"]
[SourceTitle "playchess.com"]
[Source "ChessBase"]
[SourceQuality "1"]
[TimeControl "40/5400+30:1800+30"]

1. d4 {[%emt 0:00:05]} Nf6 {[%emt 0:00:10]} 2. c4 {[%emt 0:00:11]} e6 {[%emt 0:00:16]} 3. Nf3 {[%emt 1:31:44]} b6 {[%emt 0:01:27]} 4. g3 {[%emt 0:00:00]} Bb7 {[%emt 0:00:08]} 5. Bg2 {[%emt 0:00:00]} Be7 {[%emt 0:00:29]} 6. Nc3 {[%emt 0:00:00]} d5 {[%emt 0:01:37]} 7. cxd5 {[%emt 0:00:00]} Nxd5 {[%emt 0:03:58]} 8. Nxd5 {[%emt 0:00:00]} Bxd5 {[%emt 0:00:16]} 9. O-O {[%emt 0:00:00]} Nd7 {[%emt 0:00:43]} 10. Bf4 {[%emt 0:00:00]} O-O {[%emt 0:00:33]} 11. Rc1 {[%emt 0:00:00]} c5 {[%emt 0:07:41]} 12. a3 {[%emt 0:00:00]} Bf6 {[%emt 0:10:23]} 13. Qd2 {[%emt 0:00:00]} cxd4 {[%emt 0:04:19]} 14. Nxd4 {[%emt 0:00:00]} Bxg2 {[%emt 0:03:04]} 15. Kxg2 {[%emt 0:00:00]} Nc5 {[%emt 0:00:05]} 16. Be3 {[%emt 0:00:00]} Qd5+ {[%emt 0:03:36]} 17. Nf3 {[%emt 0:00:00]} Qxd2 {[%emt 0:00:53]} 18. Nxd2 {[%emt 0:00:00]} Bxb2 {[%emt 0:00:49]} 19. Bxc5 {[%emt 0:00:00]} Bxc1 {[%emt 0:06:03]} 20. Bxf8 {[%emt 0:00:00]} Bxd2 {[%emt 0:00:03]} 21. Be7 {[%emt 0:00:00]} Re8 {[%emt 0:00:21]} 22. Rd1 {[%emt 0:00:00]} Rxe7 {[%emt 0:00:25]} 23. Rxd2 {[%emt 0:00:00]} g6 {[%emt 0:00:20]} 24. Kf3 {[%emt 0:00:00]} Rc7 {[%emt 0:00:11]} 25. Rd3 {[%emt 0:00:00]} Kg7 {[%emt 0:00:47]} 26. g4 {[%emt 0:00:00]} Kf6 {[%emt 0:00:30]} 27. h4 {[%emt 0:00:00]} h5 {[%emt 0:00:17]} 28. g5+ {[%emt 0:00:00]} Ke7 {[%emt 0:00:19]} 29. Kg3 {[%emt 0:00:00]} Rc4 {[%emt 0:00:57]} 30. f4 {[%emt 0:00:00]} b5 {[%emt 0:00:10]} 31. Kf3 {[%emt 0:00:00]} a5 {[%emt 0:01:08]} 32. e3 {[%emt 0:00:02]} b4 {[%emt 0:03:38]} 33. Ke2 {[%emt 0:05:51]} a4 {[%emt 0:01:38]} 34. axb4 {[%emt 0:00:28]} Rxb4 {[%emt 0:00:01]} 35. Kf3 {[%emt 0:05:13]} e5 {[%emt 0:00:34]} 36. Rd5 {[%emt 0:03:05]} e4+ {[%emt 0:05:45]} 37. Kg3 {[%emt 0:00:51]} a3 {[%emt 0:00:05]} 38. Ra5 {[%emt 0:00:34]} Rb3 {[%emt 0:00:01]} 39. Re5+ {[%emt 0:01:16]} Kd6 {[%emt 0:00:47]} 40. Rxe4 {[%emt 0:00:02]} Kc5 {[%emt 0:05:20]} 41. f5 {[%emt 0:11:22]} Rb4 {[%emt 0:30:01]} 42. fxg6 {[%emt 0:02:49]} fxg6 {[%emt 0:00:53]} 43. Re8 {[%emt 0:14:54]} Ra4 {[%emt 0:00:19]} 44. Rc8+ {[%emt 0:01:03]} Kd5 {[%emt 0:00:04]} 45. Rd8+ {[%emt 0:01:25]} Ke4 {[%emt 0:00:13]} 46. Re8+ {[%emt 0:00:30]} Kd3 {[%emt 0:00:04]} 47. e4 {[%emt 0:01:46]} a2 {[%emt 0:00:12]} 48. Rd8+ {[%emt 0:00:12]} Ke2 {[%emt 0:00:14]} 49. e5 {[%emt 0:00:54]} a1=Q {[%emt 0:00:08]} 0-1

[Event "Frauenbundesliga 2024-25"]
[Site "Germany"]
[Date "2025.02.16"]
[Round "6.7"]
[White "Batsiashvili, Nino"]
[Black "Maltsevskaya, Aleksandra"]
[Result "1/2-1/2"]
[Annotator "ChessBase"]
[ECO "D58"]
[WhiteElo "2470"]
[BlackElo "2371"]
[PlyCount "50"]
[EventDate "2024.11.06"]
[EventType "team-tourn"]
[EventCountry "GER"]
[SourceTitle "playchess.com"]
[Source "ChessBase"]
[SourceQuality "1"]
[TimeControl "40/5400+30:1800+30"]

1. d4 {[%emt 0:00:02]} d5 {[%emt 0:00:07]} 2. c4 {[%emt 0:00:04]} e6 {[%emt 0:00:06]} 3. Nc3 {[%emt 0:00:03]} Nf6 {[%emt 0:00:08]} 4. Bg5 {[%emt 0:00:24]} Be7 {[%emt 0:00:09]} 5. e3 {[%emt 0:00:09]} h6 {[%emt 0:00:15]} 6. Bh4 {[%emt 0:01:01]} O-O {[%emt 0:00:10]} 7. Nf3 {[%emt 0:00:03]} b6 {[%emt 0:00:36]} 8. Bxf6 {[%emt 0:00:12]} Bxf6 {[%emt 0:00:09]} 9. cxd5 {[%emt 0:00:03]} exd5 {[%emt 0:00:09]} 10. Be2 {[%emt 0:00:03]} c5 {[%emt 0:05:40]} 11. dxc5 {[%emt 0:11:18]} Bxc3+ {[%emt 0:12:02]} 12. bxc3 {[%emt 0:00:09]} bxc5 {[%emt 0:00:04]} 13. O-O {[%emt 0:03:24]} Be6 {[%emt 0:06:51]} 14. c4 {[%emt 0:10:34]} dxc4 {[%emt 0:05:07]} 15. Ne5 {[%emt 0:00:28]} Nd7 {[%emt 0:01:07]} 16. Nxd7 {[%emt 0:00:26]} Qxd7 {[%emt 0:00:10]} 17. Qxd7 {[%emt 0:00:03]} Bxd7 {[%emt 0:00:09]} 18. Bxc4 {[%emt 0:00:02]} Rab8 {[%emt 0:00:07]} 19. Rfc1 {[%emt 0:08:44]} Rfc8 {[%emt 0:03:11]} 20. Rc3 {[%emt 0:04:36]} Kf8 {[%emt 0:01:26]} 21. Rac1 {[%emt 0:00:30]} Ke7 {[%emt 0:00:26]} 22. h3 {[%emt 0:04:51]} Rb6 {[%emt 0:07:44]} 23. Bb3 {[%emt 0:03:24]} Rb5 {[%emt 0:01:29]} 24. Kf1 {[%emt 0:10:27]} Ra5 {[%emt 0:02:39]} 25. Ke1 {[%emt 0:01:23]} Be6 {[%emt 0:00:45]} 1/2-1/2

[Event "Frauenbundesliga 2024-25"]
[Site "Germany"]
[Date "2025.02.16"]
[Round "6.7"]
[White "Butenandt, Svenja"]
[Black "Rogule, Laura"]
[Result "0-1"]
[Annotator "ChessBase"]
[ECO "D36"]
[WhiteElo "2147"]
[BlackElo "2239"]
[PlyCount "114"]
[EventDate "2024.11.06"]
[EventType "team-tourn"]
[EventCountry "GER"]
[SourceTitle "playchess.com"]
[Source "ChessBase"]
[SourceQuality "1"]
[TimeControl "40/5400+30:1800+30"]

1. d4 {[%emt 0:00:04]} d5 {[%emt 0:00:07]} 2. c4 {[%emt 0:00:04]} e6 {[%emt 0:00:06]} 3. Nc3 {[%emt 0:00:07]} Nf6 {[%emt 0:00:10]} 4. cxd5 {[%emt 0:00:08]} exd5 {[%emt 0:00:06]} 5. Bg5 {[%emt 0:00:07]} Be7 {[%emt 0:00:18]} 6. e3 {[%emt 0:00:08]} c6 {[%emt 0:00:33]} 7. Bd3 {[%emt 0:00:07]} Nbd7 {[%emt 0:01:39]} 8. Nge2 {[%emt 0:00:33]} Nh5 {[%emt 0:01:22]} 9. Bxe7 {[%emt 0:00:42]} Qxe7 {[%emt 0:00:09]} 10. Qc2 {[%emt 0:00:18]} g6 {[%emt 0:01:44]} 11. O-O {[%emt 0:00:52]} O-O {[%emt 0:01:34]} 12. Rae1 {[%emt 0:01:04]} Ndf6 {[%emt 0:24:09]} 13. Nc1 {[%emt 0:02:33]} Bd7 {[%emt 0:12:51]} 14. f3 {[%emt 0:04:42]} Rac8 {[%emt 0:20:14]} 15. Qf2 {[%emt 0:13:15]} b6 {[%emt 0:03:56]} 16. Qh4 {[%emt 0:17:16]} Qd6 {[%emt 0:06:15]} 17. Bb1 {[%emt 0:08:52]} Ng7 {[%emt 0:06:37]} 18. Nb3 {[%emt 0:05:35]} Nfh5 {[%emt 0:05:35]} 19. e4 {[%emt 0:07:51]} Be6 {[%emt 0:03:05]} 20. e5 {[%emt 0:02:48]} Qd8 {[%emt 0:01:44]} 21. Qxd8 {[%emt 0:01:59]} Rfxd8 {[%emt 0:00:11]} 22. Ne2 {[%emt 0:00:22]} Ne8 {[%emt 0:00:58]} 23. g4 {[%emt 0:00:42]} Nhg7 {[%emt 0:00:05]} 24. Rc1 {[%emt 0:00:20]} a5 {[%emt 0:01:58]} 25. Nc3 {[%emt 0:03:01]} Bd7 {[%emt 0:02:00]} 26. h3 {[%emt 0:02:21]} h5 {[%emt 0:00:32]} 27. Kh2 {[%emt 0:01:36]} Ra8 {[%emt 0:02:24]} 28. a4 {[%emt 0:01:48]} Nc7 {[%emt 0:01:55]} 29. Kg3 {[%emt 0:00:34]} g5 {[%emt 0:00:30]} 30. h4 {[%emt 0:05:45]} gxh4+ {[%emt 0:01:15]} 31. Kxh4 {[%emt 0:00:01]} hxg4 {[%emt 0:00:27]} 32. fxg4 {[%emt 0:00:03]} Nge6 {[%emt 0:00:51]} 33. Rf6 {[%emt 0:01:40]} c5 {[%emt 0:00:28]} 34. dxc5 {[%emt 0:05:25]} bxc5 {[%emt 0:00:17]} 35. g5 {[%emt 0:00:12]} Rab8 {[%emt 0:00:52]} 36. Nxa5 {[%emt 0:03:13]} Rb4+ {[%emt 0:00:13]} 37. Kg3 {[%emt 0:00:08]} Ra8 {[%emt 0:00:52]} 38. g6 {[%emt 0:04:02]} Rxa5 {[%emt 0:00:44]} 39. Rh1 {[%emt 0:02:21]} Ng5 {[%emt 0:00:35]} 40. Rd6 {[%emt 0:04:01]} Be8 {[%emt 0:00:26]} 41. Rd8 {[%emt 0:06:30]} Kg7 {[%emt 0:13:49]} 42. Rh5 {[%emt 0:06:43]} Ne4+ {[%emt 0:08:56]} 43. Bxe4 {[%emt 0:00:11]} dxe4 {[%emt 0:01:09]} 44. gxf7 {[%emt 0:00:14]} Bxf7 {[%emt 0:02:37]} 45. Rd7 {[%emt 0:04:37]} Kg6 {[%emt 0:02:24]} 46. Rh4 {[%emt 0:01:56]} Ne6 {[%emt 0:00:48]} 47. Rg4+ {[%emt 0:00:04]} Ng5 {[%emt 0:00:35]} 48. Rxg5+ {[%emt 0:04:40]} Kxg5 {[%emt 0:00:05]} 49. Rxf7 {[%emt 0:00:02]} Ra6 {[%emt 0:01:39]} 50. Rf4 {[%emt 0:01:46]} e3 {[%emt 0:00:55]} 51. Ne4+ {[%emt 0:01:00]} Kg6 {[%emt 0:00:33]} 52. Nxc5 {[%emt 0:04:26]} e2 {[%emt 0:00:52]} 53. Nd3 {[%emt 0:00:31]} Rb3 {[%emt 0:00:23]} 54. Rg4+ {[%emt 0:00:04]} Kf7 {[%emt 0:00:58]} 55. Rf4+ {[%emt 0:00:04]} Ke7 {[%emt 0:00:21]} 56. Kf2 {[%emt 0:00:03]} Rxd3 {[%emt 0:00:09]} 57. Kxe2 {[%emt 0:00:04]} Rb3 {[%emt 0:00:15]} 0-1

[Event "Frauenbundesliga 2024-25"]
[Site "Germany"]
[Date "2025.02.16"]
[Round "6.8"]
[White "Kiolbasa, Oliwia"]
[Black "Javakhishvili, Lela"]
[Result "1/2-1/2"]
[Annotator "ChessBase"]
[ECO "C55"]
[WhiteElo "2361"]
[BlackElo "2426"]
[PlyCount "64"]
[EventDate "2024.11.06"]
[EventType "team-tourn"]
[EventCountry "GER"]
[SourceTitle "playchess.com"]
[Source "ChessBase"]
[SourceQuality "1"]
[TimeControl "40/5400+30:1800+30"]

1. e4 {[%emt 0:00:03]} e5 {[%emt 0:00:11]} 2. Nf3 {[%emt 0:00:07]} Nc6 {[%emt 0:00:04]} 3. Bc4 {[%emt 0:00:06]} Nf6 {[%emt 0:00:17]} 4. d3 {[%emt 0:00:10]} h6 {[%emt 0:00:25]} 5. c3 {[%emt 0:01:03]} d6 {[%emt 0:00:09]} 6. a4 {[%emt 0:00:27]} g6 {[%emt 0:01:01]} 7. Qb3 {[%emt 0:00:55]} Qe7 {[%emt 0:01:51]} 8. a5 {[%emt 0:00:07]} Bg7 {[%emt 0:07:55]} 9. O-O {[%emt 0:07:29]} O-O {[%emt 0:00:54]} 10. Re1 {[%emt 0:00:10]} g5 {[%emt 0:12:10]} 11. Qd1 {[%emt 0:06:11]} Be6 {[%emt 0:02:20]} 12. Bxe6 {[%emt 0:02:33]} fxe6 {[%emt 0:00:39]} 13. a6 {[%emt 0:02:58]} b6 {[%emt 0:00:22]} 14. b4 {[%emt 0:06:21]} Qf7 {[%emt 0:02:19]} 15. Ra2 {[%emt 0:01:10]} Nh5 {[%emt 0:01:42]} 16. h4 {[%emt 0:10:54]} gxh4 {[%emt 0:08:40]} 17. Nxh4 {[%emt 0:01:04]} Kh7 {[%emt 0:00:13]} 18. g3 {[%emt 0:09:16]} Bf6 {[%emt 0:02:36]} 19. Ng2 {[%emt 0:00:07]} Rg8 {[%emt 0:00:08]} 20. Nd2 {[%emt 0:09:29]} Rg7 {[%emt 0:04:47]} 21. Nf1 {[%emt 0:03:46]} Rag8 {[%emt 0:00:18]} 22. b5 {[%emt 0:01:22]} Nd8 {[%emt 0:02:34]} 23. d4 {[%emt 0:00:08]} Qg6 {[%emt 0:11:22]} 24. d5 {[%emt 0:03:50]} exd5 {[%emt 0:02:59]} 25. exd5 {[%emt 0:02:52]} Nf7 {[%emt 0:00:47]} 26. Ra4 {[%emt 0:01:43]} Bg5 {[%emt 0:07:03]} 27. Nh4 {[%emt 0:07:26]} Bxh4 {[%emt 0:00:08]} 28. Rxh4 {[%emt 0:00:05]} Nf6 {[%emt 0:00:09]} 29. Kg2 {[%emt 0:01:39]} Kh8 {[%emt 0:04:14]} 30. Ne3 {[%emt 0:06:28]} Rh7 {[%emt 0:01:57]} 31. Reh1 {[%emt 0:00:30]} h5 {[%emt 0:06:38]} 32. c4 {[%emt 0:02:34]} Ng5 {[%emt 0:00:29]} 1/2-1/2

[Event "Frauenbundesliga 2024-25"]
[Site "Germany"]
[Date "2025.02.16"]
[Round "6.8"]
[White "Berzina, Ilze"]
[Black "Gueci, Tea"]
[Result "1/2-1/2"]
[Annotator "ChessBase"]
[ECO "B31"]
[WhiteElo "2197"]
[BlackElo "2198"]
[PlyCount "41"]
[EventDate "2024.11.06"]
[EventType "team-tourn"]
[EventCountry "GER"]
[SourceTitle "playchess.com"]
[Source "ChessBase"]
[SourceQuality "1"]
[TimeControl "40/5400+30:1800+30"]

1. e4 {[%emt 0:00:04]} c5 {[%emt 0:00:02]} 2. Nf3 {[%emt 0:00:09]} Nc6 {[%emt 0:00:03]} 3. Bb5 {[%emt 0:00:11]} g6 {[%emt 0:00:03]} 4. O-O {[%emt 0:00:16]} Bg7 {[%emt 0:00:04]} 5. c3 {[%emt 0:00:34]} Nf6 {[%emt 0:00:18]} 6. Re1 {[%emt 0:00:35]} O-O {[%emt 0:00:10]} 7. d4 {[%emt 0:00:26]} d5 {[%emt 0:00:12]} 8. e5 {[%emt 0:06:53]} Ne4 {[%emt 0:00:05]} 9. Nbd2 {[%emt 0:02:57]} cxd4 {[%emt 0:02:23]} 10. cxd4 {[%emt 0:00:32]} Qb6 {[%emt 0:00:09]} 11. Bxc6 {[%emt 0:00:48]} Qxc6 {[%emt 0:02:06]} 12. Nf1 {[%emt 0:07:21]} f6 {[%emt 0:09:57]} 13. exf6 {[%emt 0:03:37]} exf6 {[%emt 0:00:41]} 14. Bf4 {[%emt 0:12:36]} g5 {[%emt 0:04:39]} 15. Be3 {[%emt 0:02:44]} Bg4 {[%emt 0:12:10]} 16. Qb3 {[%emt 0:04:51]} Rac8 {[%emt 0:13:03]} 17. Rac1 {[%emt 0:10:31]} Qd7 {[%emt 0:00:25]} 18. N3d2 {[%emt 0:06:38]} Be6 {[%emt 0:03:52]} 19. f3 {[%emt 0:08:58]} Nd6 {[%emt 0:03:34]} 20. Bf2 {[%emt 0:01:10]} Bf7 {[%emt 0:07:40]} 21. Ne3 {[%emt 0:12:05]} 1/2-1/2